[Event "EICC 2021"]
[Site "Reykjavik"]
[Date "2021.08.29"]
[Round "4.37"]
[White "D`Costa, Lorin"]
[Black "Basso, Pier Luigi"]
[Result "1/2-1/2"]
[ECO "D23"]
[WhiteElo "2381"]
[BlackElo "2541"]
[Annotator "ChessBase"]
[PlyCount "153"]
[EventDate "2021.08.26"]
[EventType "swiss"]
[EventCountry "ISL"]
[Tiebreak "Cut1 Buchholz"]
[SourceTitle "playchess.com"]
[Source "ChessBase"]
[SourceQuality "1"]
[TimeControl "40/5400+30:1800+30"]

1. Nf3 {[%emt 0:00:05]} d5 {[%emt 0:02:13]} 2. d4 {[%emt 0:00:34]} Nf6 {
[%emt 0:02:44]} 3. c4 {[%emt 0:00:27]} c6 {[%emt 0:00:06]} 4. Qb3 {[%emt 0:01:
01]} dxc4 {[%emt 0:00:07]} 5. Qxc4 {[%emt 0:00:11]} Bg4 {[%emt 0:00:07]} 6.
Nbd2 {[%emt 0:00:39]} Nbd7 {[%emt 0:00:14]} 7. g3 {[%emt 0:00:36]} e6 {[%emt 0:
00:06]} 8. Bg2 {[%emt 0:00:15]} Bd6 {[%emt 0:00:06]} 9. O-O {[%emt 0:00:50]}
O-O {[%emt 0:00:08]} 10. Qb3 {[%emt 0:06:47]} Nb6 {[%emt 0:00:16]} 11. Re1 {
[%emt 0:07:45]} a5 {[%emt 0:25:42]} 12. Ne5 {[%emt 0:45:26]} a4 {[%emt 0:03:47]
} 13. Qc2 {[%emt 0:01:59]} Bh5 {[%emt 0:00:35]} 14. Ndc4 {[%emt 0:05:56]} Nxc4
{[%emt 0:06:20]} 15. Nxc4 {[%emt 0:02:14]} Bc7 {[%emt 0:02:56]} 16. e3 {
[%emt 0:07:23]} Nd7 {[%emt 0:09:31]} 17. Bd2 {[%emt 0:04:26]} Bg6 {[%emt 0:03:
07]} 18. Qd1 {[%emt 0:01:48]} Qb8 {[%emt 0:03:47]} 19. b4 {[%emt 0:06:47]} Rd8
{[%emt 0:06:02]} 20. Qc1 {[%emt 0:00:56]} e5 {[%emt 0:01:43]} 21. Bc3 {[%emt 0:
00:59]} exd4 {[%emt 0:01:55]} 22. Bxd4 {[%emt 0:00:06]} Ne5 {[%emt 0:00:09]}
23. Qc3 {[%emt 0:02:10]} f6 {[%emt 0:03:29]} 24. h3 {[%emt 0:01:00]} Bf7 {
[%emt 0:01:33]} 25. Nd2 {[%emt 0:00:25]} Nd7 {[%emt 0:04:45]} 26. a3 {[%emt 0:
00:55]} Nb6 {[%emt 0:01:41]} 27. Rad1 {[%emt 0:00:35]} Qc8 {[%emt 0:01:46]} 28.
f4 {[%emt 0:00:48]} Qe6 {[%emt 0:01:06]} 29. Kh2 {[%emt 0:00:34]} Nc8 {[%emt 0:
05:12]} 30. Ne4 {[%emt 0:00:48]} Nd6 {[%emt 0:00:09]} 31. Nxd6 {[%emt 0:00:44]}
Rxd6 {[%emt 0:00:04]} 32. Bc5 {[%emt 0:00:32]} Rdd8 {[%emt 0:00:31]} 33. e4 {
[%emt 0:00:35]} Qb3 {[%emt 0:02:13]} 34. Qc1 {[%emt 0:00:11]} h5 {[%emt 0:01:
29]} 35. h4 {[%emt 0:00:11]} Be6 {[%emt 0:00:06]} 36. Be7 {[%emt 0:01:06]} Re8
{[%emt 0:00:35]} 37. Bd6 {[%emt 0:00:14]} Bb6 {[%emt 0:00:40]} 38. f5 {[%emt 0:
00:58]} Bf7 {[%emt 0:00:31]} 39. e5 {[%emt 0:00:15]} fxe5 {[%emt 0:00:26]} 40.
Bxe5 {[%emt 0:00:32]} Bf2 {[%emt 0:04:24]} 41. Qf4 {[%emt 0:21:46]} Bxe1 {
[%emt 0:03:10]} 42. Rxe1 {[%emt 0:00:56]} Bd5 {[%emt 0:22:47]} 43. Qg5 {
[%emt 0:05:25]} Rxe5 {[%emt 0:00:18]} 44. Rxe5 {[%emt 0:00:05]} Qb2 {[%emt 0:
01:20]} 45. Rxd5 {[%emt 0:03:03]} cxd5 {[%emt 0:00:05]} 46. f6 {[%emt 0:01:06]}
Qxf6 {[%emt 0:00:09]} 47. Bxd5+ {[%emt 0:00:39]} Kf8 {[%emt 0:00:08]} 48. Qxh5
{[%emt 0:00:43]} Rd8 {[%emt 0:00:22]} 49. Kh3 {[%emt 0:01:00]} b6 {[%emt 0:00:
43]} 50. Qh8+ {[%emt 0:00:28]} Ke7 {[%emt 0:00:06]} 51. Qh5 {[%emt 0:00:02]}
Rd6 {[%emt 0:02:47]} 52. b5 {[%emt 0:00:50]} Qf1+ {[%emt 0:01:05]} 53. Bg2 {
[%emt 0:00:12]} Qf7 {[%emt 0:00:15]} 54. Qh8 {[%emt 0:00:55]} Rd8 {[%emt 0:02:
18]} 55. Qh7 {[%emt 0:00:13]} Rd2 {[%emt 0:04:32]} 56. Qh8 {[%emt 0:00:27]} Rd8
{[%emt 0:01:52]} 57. Qh7 {[%emt 0:00:03]} g5 {[%emt 0:01:05]} 58. Qc2 {[%emt 0:
01:01]} gxh4 {[%emt 0:00:12]} 59. Qc7+ {[%emt 0:00:42]} Rd7 {[%emt 0:00:04]}
60. Qxb6 {[%emt 0:00:27]} Qf5+ {[%emt 0:03:17]} 61. Kxh4 {[%emt 0:00:32]} Qh7+
{[%emt 0:00:26]} 62. Kg4 {[%emt 0:00:36]} Qg7+ {[%emt 0:00:05]} 63. Kh3 {
[%emt 0:00:28]} Qh8+ {[%emt 0:00:06]} 64. Kg4 {[%emt 0:00:06]} Qd4+ {[%emt 0:
01:35]} 65. Qxd4 {[%emt 0:00:05]} Rxd4+ {[%emt 0:00:03]} 66. Kf5 {[%emt 0:00:
45]} Rd3 {[%emt 0:00:05]} 67. b6 {[%emt 0:01:07]} Kd6 {[%emt 0:00:10]} 68. b7 {
[%emt 0:00:24]} Kc7 {[%emt 0:00:04]} 69. g4 {[%emt 0:00:26]} Rxa3 {[%emt 0:00:
15]} 70. Bc6 {[%emt 0:00:41]} Ra1 {[%emt 0:00:18]} 71. Bxa4 {[%emt 0:00:32]}
Rxa4 {[%emt 0:00:05]} 72. g5 {[%emt 0:00:05]} Kxb7 {[%emt 0:00:57]} 73. g6 {
[%emt 0:00:20]} Kc6 {[%emt 0:01:18]} 74. g7 {[%emt 0:00:19]} Ra8 {[%emt 0:00:
04]} 75. Ke6 {[%emt 0:00:27]} Rg8 {[%emt 0:00:26]} 76. Kf7 {[%emt 0:00:04]}
Rxg7+ {[%emt 0:00:03]} 77. Kxg7 {[%emt 0:00:36]} 1/2-1/2

[Event "EICC 2021"]
[Site "Reykjavik"]
[Date "2021.08.29"]
[Round "4.39"]
[White "Stefansson, Vignir Vatnar"]
[Black "Petrov, Martin"]
[Result "1/2-1/2"]
[ECO "E01"]
[WhiteElo "2371"]
[BlackElo "2521"]
[Annotator "ChessBase"]
[PlyCount "92"]
[EventDate "2021.08.26"]
[EventType "swiss"]
[EventCountry "ISL"]
[Tiebreak "Cut1 Buchholz"]
[SourceTitle "playchess.com"]
[Source "ChessBase"]
[SourceQuality "1"]
[TimeControl "40/5400+30:1800+30"]

1. d4 {[%emt 0:00:18]} Nf6 {[%emt 0:00:08]} 2. Nf3 {[%emt 0:00:35]} e6 {
[%emt 0:00:08]} 3. g3 {[%emt 0:01:06]} d5 {[%emt 0:00:40]} 4. Bg2 {[%emt 0:00:
25]} Nbd7 {[%emt 0:09:24]} 5. c4 {[%emt 0:02:21]} Bb4+ {[%emt 0:04:50]} 6. Nbd2
{[%emt 0:00:38]} O-O {[%emt 0:01:44]} 7. O-O {[%emt 0:00:38]} b6 {[%emt 0:04:
35]} 8. Qa4 {[%emt 0:14:32]} a5 {[%emt 0:07:23]} 9. Ne5 {[%emt 0:10:30]} Bd6 {
[%emt 0:13:55]} 10. Nxd7 {[%emt 0:03:13]} Bxd7 {[%emt 0:01:02]} 11. Qc2 {
[%emt 0:00:17]} c5 {[%emt 0:04:51]} 12. dxc5 {[%emt 0:10:03]} Bxc5 {[%emt 0:00:
50]} 13. cxd5 {[%emt 0:13:26]} Rc8 {[%emt 0:03:19]} 14. Qd3 {[%emt 0:01:39]}
Nxd5 {[%emt 0:00:41]} 15. Nb3 {[%emt 0:04:39]} Nb4 {[%emt 0:07:29]} 16. Qd1 {
[%emt 0:00:05]} Be7 {[%emt 0:03:31]} 17. Nd4 {[%emt 0:00:07]} e5 {[%emt 0:08:
13]} 18. a3 {[%emt 0:01:31]} exd4 {[%emt 0:02:32]} 19. axb4 {[%emt 0:00:05]}
Bxb4 {[%emt 0:00:50]} 20. Qxd4 {[%emt 0:00:11]} Bb5 {[%emt 0:00:49]} 21. Qxd8 {
[%emt 0:03:33]} Rfxd8 {[%emt 0:00:02]} 22. Bf3 {[%emt 0:00:46]} Kf8 {[%emt 0:
03:21]} 23. Be3 {[%emt 0:10:10]} Bc5 {[%emt 0:00:30]} 24. Bxc5+ {[%emt 0:00:22]
} Rxc5 {[%emt 0:00:06]} 25. b4 {[%emt 0:00:14]} axb4 {[%emt 0:03:44]} 26. Rfb1
{[%emt 0:00:43]} Bc4 {[%emt 0:01:04]} 27. Rxb4 {[%emt 0:00:37]} b5 {[%emt 0:00:
05]} 28. Rb2 {[%emt 0:00:18]} Rc7 {[%emt 0:00:29]} 29. e3 {[%emt 0:03:28]} Rcd7
{[%emt 0:03:43]} 30. Be2 {[%emt 0:10:06]} Bxe2 {[%emt 0:05:49]} 31. Rxe2 {
[%emt 0:00:05]} Rd1+ {[%emt 0:00:13]} 32. Rxd1 {[%emt 0:00:03]} Rxd1+ {[%emt 0:
00:03]} 33. Kg2 {[%emt 0:00:04]} Ke7 {[%emt 0:00:21]} 34. Rb2 {[%emt 0:00:05]}
Rd5 {[%emt 0:00:04]} 35. Kf3 {[%emt 0:00:36]} Kd6 {[%emt 0:00:45]} 36. e4 {
[%emt 0:00:45]} Rc5 {[%emt 0:01:28]} 37. Ke3 {[%emt 0:00:07]} Kc6 {[%emt 0:00:
57]} 38. Kd3 {[%emt 0:02:55]} Kb6 {[%emt 0:02:26]} 39. f4 {[%emt 0:01:55]} Rc1
{[%emt 0:01:44]} 40. e5 {[%emt 0:01:10]} g6 {[%emt 0:01:53]} 41. Kd4 {[%emt 0:
30:23]} Kc6 {[%emt 0:31:49]} 42. Kd3 {[%emt 0:01:56]} h5 {[%emt 0:00:00]} 43.
Kd2 {[%emt 0:00:00]} Rc5 {[%emt 0:00:00]} 44. Ra2 {[%emt 0:00:00]} Kb6 {
[%emt 0:00:00]} 45. Ra8 {[%emt 0:00:00]} Kb7 {[%emt 0:00:00]} 46. Rd8 {[%emt 0:
00:00]} Rc7 {[%emt 0:00:00]} 1/2-1/2

[Event "EICC 2021"]
[Site "Reykjavik"]
[Date "2021.08.29"]
[Round "4.40"]
[White "Martinovic, Sasa"]
[Black "Aizenberg, Benny"]
[Result "1-0"]
[ECO "D78"]
[WhiteElo "2548"]
[BlackElo "2309"]
[Annotator "ChessBase"]
[PlyCount "61"]
[EventDate "2021.08.26"]
[EventType "swiss"]
[EventCountry "ISL"]
[Tiebreak "Cut1 Buchholz"]
[SourceTitle "playchess.com"]
[Source "ChessBase"]
[SourceQuality "1"]
[TimeControl "40/5400+30:1800+30"]

1. d4 {[%emt 0:00:01]} Nf6 {[%emt 0:00:01]} 2. c4 {[%emt 0:00:06]} g6 {[%emt 0:
00:03]} 3. Nf3 {[%emt 0:00:04]} Bg7 {[%emt 0:00:06]} 4. g3 {[%emt 0:00:08]} c6
{[%emt 0:00:34]} 5. Bg2 {[%emt 0:00:11]} d5 {[%emt 0:00:01]} 6. O-O {[%emt 0:
00:10]} O-O {[%emt 0:00:05]} 7. Nc3 {[%emt 0:00:03]} dxc4 {[%emt 0:02:48]} 8.
e4 {[%emt 0:00:05]} b5 {[%emt 0:01:21]} 9. Qe2 {[%emt 0:00:13]} Nbd7 {[%emt 0:
04:01]} 10. Rd1 {[%emt 0:02:48]} Bb7 {[%emt 0:01:57]} 11. e5 {[%emt 0:04:20]}
Nd5 {[%emt 0:01:34]} 12. e6 {[%emt 0:02:39]} Nxc3 {[%emt 0:03:15]} 13. bxc3 {
[%emt 0:01:36]} Nb6 {[%emt 0:01:15]} 14. exf7+ {[%emt 0:00:39]} Rxf7 {[%emt 0:
00:03]} 15. Ng5 {[%emt 0:02:48]} Rf6 {[%emt 0:00:33]} 16. Ne6 {[%emt 0:05:11]}
Qd7 {[%emt 0:02:28]} 17. Re1 {[%emt 0:18:59]} Na4 {[%emt 0:23:33]} 18. Nxg7 {
[%emt 0:01:53]} Kxg7 {[%emt 0:00:01]} 19. Qxe7+ {[%emt 0:03:14]} Qxe7 {[%emt 0:
04:34]} 20. Rxe7+ {[%emt 0:00:06]} Rf7 {[%emt 0:00:05]} 21. Bh6+ {[%emt 0:00:
11]} Kf6 {[%emt 0:00:32]} 22. Re5 {[%emt 0:12:00]} g5 {[%emt 0:15:01]} 23. Rae1
{[%emt 0:07:01]} Kg6 {[%emt 0:00:24]} 24. Bxg5 {[%emt 0:01:22]} Nxc3 {[%emt 0:
03:29]} 25. Re6+ {[%emt 0:00:59]} Kxg5 {[%emt 0:00:29]} 26. R1e5+ {[%emt 0:00:
30]} Rf5 {[%emt 0:00:04]} 27. Rxf5+ {[%emt 0:00:41]} Kxf5 {[%emt 0:00:03]} 28.
Bh3+ {[%emt 0:00:04]} Kg5 {[%emt 0:00:07]} 29. f4+ {[%emt 0:00:03]} Kh5 {
[%emt 0:00:39]} 30. g4+ {[%emt 0:00:06]} Kh4 {[%emt 0:00:01]} 31. Rh6# {
[%emt 0:00:06]} 1-0